bitfinex-derivatives/quotes_BTCF0:USTF0_20250108
["timestamp","ask_amount","ask_price","bid_price","bid_amount"]
[1736347945631,0.052555,95161.0,95145.0,0.3608]
[1736347945835,0.052561,95150.0,95145.0,0.3608]
[1736347946036,0.3608,95162.0,95145.0,0.3608]
[1736347946234,0.3608,95162.0,95147.0,0.3608]
[1736347946639,0.052562,95148.0,95147.0,0.3608]
[1736347946938,0.3608,95162.0,95134.0,0.3608]
[1736347947132,0.052565,95143.0,95126.0,0.3608]
[1736347947333,0.3608,95144.0,95111.0,0.3608]
[1736347947527,0.052582,95112.0,95111.0,0.3608]
[1736347948224,0.052585,95106.0,95091.0,0.052593]
[1736347948424,0.41346826,95106.0,95078.0,0.1327]
[1736347948636,0.41346826,95106.0,95071.0,0.413404]
[1736347948637,0.052593,95092.0,95071.0,0.413404]
[1736347948838,0.052594,95090.0,95080.0,0.3608]
[1736347949038,0.36088326,95106.0,95089.0,0.3608]
[1736347949339,0.052591,95096.0,95089.0,0.3608]
[1736347949538,0.052587,95102.0,95089.0,0.3608]
[1736347949737,0.36088326,95106.0,95089.0,0.3608]
[1736347950640,0.052588,95094.0,95089.0,0.3608]
[1736347951143,8.326e-05,95106.0,95091.0,0.052589]
[1736347951330,0.052584,95101.0,95099.0,0.3608]
[1736347951533,0.052586,95098.0,95089.0,0.3608]
[1736347951732,0.052582,95105.0,95097.0,0.3608]
[1736347951938,8.326e-05,95106.0,95104.0,0.052582]
[1736347952434,8.326e-05,95106.0,95101.0,0.00064]
[1736347952639,8.326e-05,95106.0,95105.0,0.052582]
[1736347953242,0.413358,95148.0,95105.0,0.3]
[1736347953542,0.413358,95148.0,95098.0,0.3608]
[1736347953543,0.052572,95123.0,95114.0,0.3608]
[1736347953739,0.052572,95123.0,95122.0,0.3608]
[1736347953944,0.052572,95123.0,95122.0,0.32056511]
[1736347954140,0.2443149,95140.0,95065.0,0.3802]
[1736347954141,0.052582,95105.0,95104.0,0.3608]
[1736347954548,0.052578,95112.0,95104.0,0.3608]
[1736347954743,0.3608,95116.0,95093.0,0.0158]
[1736347955044,0.052577,95113.0,95103.0,0.3608]
[1736347955941,0.3608,95116.0,95103.0,0.3608]
[1736347956143,0.052582,95104.0,95103.0,0.3608]
[1736347956334,0.052589,95092.0,95091.0,0.3608]
[1736347957447,0.052593,95084.0,95083.0,0.3608]
[1736347957851,0.052593,95084.0,95069.0,0.3608]
[1736347957852,0.052601,95070.0,95069.0,0.3608]
[1736347958846,0.413393,95084.0,95069.0,0.3608]
[1736347958847,0.052601,95071.0,95069.0,0.3608]
[1736347960651,0.052601,95071.0,95070.0,0.3608]
[1736347961052,0.052597,95077.0,95070.0,0.3608]
[1736347961250,0.052599,95074.0,95070.0,0.3608]
[1736347961457,0.052595,95081.0,95070.0,0.413401]
[1736347961754,0.3608,95084.0,95070.0,0.413401]
[1736347961955,0.052595,95080.0,95079.0,0.3608]
[1736347962755,0.0526,95072.0,95070.0,0.3608]
[1736347964247,0.0526,95072.0,95059.0,0.36092231]
[1736347964555,0.052606,95060.0,95059.0,0.36092231]
[1736347966444,0.3608,95104.0,95059.0,0.36092231]
[1736347966757,0.052595,95080.0,95074.0,0.3608]
[1736347966955,0.052597,95078.0,95074.0,0.3608]
[1736347967144,0.052597,95076.0,95074.0,0.3608]
[1736347967551,0.052595,95080.0,95074.0,0.3608]
[1736347967750,0.052595,95080.0,95074.0,0.413398]
[1736347967948,0.052588,95093.0,95074.0,0.3608]
[1736347968160,0.052597,95076.0,95074.0,0.3608]
[1736347968550,0.052606,95061.0,95059.0,0.36092231]
[1736347968858,0.052602,95068.0,95059.0,0.36092231]
[1736347969058,0.052602,95068.0,95067.0,0.3608]
[1736347971358,0.052606,95060.0,95059.0,0.00012231]
[1736347971560,0.413406,95060.0,95059.0,0.00012231]
[1736347971958,0.052606,95060.0,95059.0,0.00012231]
[1736347974356,0.052603,95065.0,95059.0,0.36092231]
[1736347974661,0.052605,95062.0,95060.0,0.3608]
[1736347974960,0.052606,95061.0,95060.0,0.3608]
[1736347976161,0.052606,95061.0,95060.0,0.35680809]
[1736347977459,0.37214235,95061.0,95044.0,0.3608]
[1736347977763,0.052614,95045.0,95036.0,0.3608]
[1736347977961,0.052619,95037.0,95036.0,0.3608]
[1736347978763,0.05273973,95037.0,95036.0,0.3608]
[1736347980061,0.00012073,95037.0,95036.0,0.3608]
[1736347980262,0.05273973,95037.0,95036.0,0.3608]
[1736347981064,0.05273973,95037.0,95023.0,0.3608]
[1736347981065,0.052623,95030.0,95023.0,0.3608]
[1736347981252,0.00012073,95037.0,95024.0,0.04786566]
[1736347981456,0.052625,95026.0,95024.0,0.04786566]
[1736347982066,0.052622,95032.0,95024.0,0.10049166]
[1736347982259,0.052622,95032.0,95031.0,0.3608]
[1736347982459,0.123991,95036.0,95035.0,0.05262]
[1736347982664,0.15332128,95042.0,95041.0,0.052617]
[1736347982967,0.2146498,95060.0,95047.0,0.052613]
[1736347983262,0.2146498,95060.0,95041.0,0.40866566]
[1736347983263,0.2672558,95060.0,95059.0,0.7216]
[1736347983570,0.052606,95060.0,95059.0,0.04786566]
[1736347983867,0.052605,95063.0,95061.0,0.052605]
[1736347984167,0.18602893,95069.0,95061.0,0.052605]
[1736347984168,0.052602,95068.0,95061.0,0.052605]
[1736347984360,0.052602,95068.0,95067.0,0.3608]
[1736347984758,0.052598,95075.0,95070.0,0.0526]
[1736347984955,0.3608,95094.0,95069.0,0.3608]
[1736347985259,0.052592,95087.0,95080.0,0.413395]
[1736347985456,0.052588,95093.0,95081.0,0.3608]
[1736347985662,0.052588,95093.0,95092.0,0.3608]
[1736347986370,0.0115459,95097.0,95092.0,0.3608]
[1736347986562,0.052588,95094.0,95092.0,0.3608]
[1736347987273,0.052588,95094.0,95093.0,0.04797182]
[1736347987861,0.69810683,95145.0,95093.0,0.36377182]
[1736347988056,0.2672218,95121.0,95120.0,0.3608]
[1736347988273,0.2672218,95121.0,95099.0,0.3608]
[1736347988274,0.2146498,95121.0,95099.0,0.3608]
[1736347988567,0.052583,95102.0,95100.0,0.04798851]
[1736347988771,0.2443149,95110.0,95099.0,0.3608]
[1736347988970,0.052584,95100.0,95099.0,0.3608]
[1736347989265,0.05259,95090.0,95089.0,0.3608]
[1736347989470,0.052593,95084.0,95082.0,0.00157733]
[1736347989772,0.052584,95100.0,95078.0,0.18668289]
[1736347989773,0.3608,95083.0,95078.0,0.18668289]
[1736347989963,0.052596,95079.0,95078.0,0.17362289]
[1736347990163,0.05261,95054.0,95048.0,0.24757727]
[1736347990666,0.052605,95062.0,95048.0,0.60837727]
[1736347990874,0.00011234,95061.0,95058.0,0.3608]
[1736347991263,0.05271834,95061.0,95059.0,0.04800375]
[1736347991460,0.052609,95054.0,95052.0,0.00157783]
[1736347991872,0.3608,95053.0,95035.0,0.3608]
[1736347992063,0.052619,95037.0,95036.0,0.0480219]
[1736347992460,0.052619,95037.0,95035.0,0.3608]
[1736347992666,0.00010452,95052.0,95019.0,0.00012963]
[1736347992667,0.052623,95029.0,95019.0,0.00012963]
[1736347992867,0.052627,95022.0,95020.0,0.04801328]
[1736347993171,0.3608,95023.0,95019.0,0.00012963]
[1736347993172,0.052628,95020.0,95019.0,0.00012963]
[1736347993476,0.3608,95023.0,95002.0,0.24757727]
[1736347993477,0.052638,95003.0,95002.0,0.24757727]
[1736347994161,0.052638,95003.0,95000.0,0.1]
[1736347994162,0.052639,95001.0,95000.0,0.1]
[1736347994373,0.052639,95001.0,94984.0,0.00157895]
[1736347994374,0.052648,94986.0,94984.0,0.00157895]
[1736347995266,0.3608,94995.0,94976.0,0.3608]
[1736347995584,0.00013308,94994.0,94976.0,0.3608]
[1736347995869,0.00013308,94994.0,94953.0,0.01644]
[1736347995870,0.00013308,94994.0,94993.0,0.3608]
[1736347996261,1e-08,94994.0,94993.0,0.6608]
[1736347996489,0.052625,95026.0,94993.0,0.70862848]
[1736347996667,0.052625,95026.0,95025.0,0.3608]
[1736347996869,0.2146498,95037.0,95025.0,0.3608]
[1736347997067,0.2146498,95037.0,95036.0,0.3608]
[1736347997269,0.3608,95067.0,95036.0,0.413419]
[1736347997574,0.00010925,95037.0,95036.0,0.413419]
[1736347997773,0.37200558,95067.0,95039.0,0.052618]
[1736347997964,0.05261,95053.0,95049.0,0.3608]
[1736347998172,0.052607,95059.0,95049.0,0.3608]
[1736347998372,0.37200558,95067.0,95049.0,0.3608]
[1736347998773,0.052612,95050.0,95049.0,0.3608]
[1736347998968,0.3608,95050.0,95029.0,0.3608]
[1736347999271,0.052623,95030.0,95029.0,0.3608]
[1736347999676,0.052622,95031.0,95029.0,0.3608]
[1736347999864,0.052617,95040.0,95029.0,0.3608]
[1736348000069,0.24804282,95050.0,95039.0,0.3608]
[1736348000265,0.052617,95041.0,95039.0,0.3608]
[1736348000582,0.052623,95029.0,95028.0,0.3608]
[1736348001072,0.24804282,95050.0,95028.0,0.3608]
[1736348001273,0.052617,95041.0,95038.0,0.3608]
[1736348001463,0.24804282,95050.0,95038.0,0.3608]
[1736348001863,0.052623,95030.0,95027.0,0.3608]
[1736348002070,0.052623,95029.0,95027.0,0.3608]
[1736348002268,0.7216,95034.0,95010.0,0.00018425]
[1736348002472,0.052633,95011.0,95010.0,0.00018425]
[1736348003077,0.413433,95011.0,95010.0,0.00018425]
[1736348004966,0.3608,95011.0,95010.0,0.00018425]
[1736348005580,0.3608,95028.0,95010.0,0.36098425]
[1736348005782,0.052626,95025.0,95010.0,0.36098425]
[1736348005976,0.3608,95028.0,95016.0,0.05263]
[1736348006371,0.3608,95028.0,95010.0,0.60593915]
[1736348006372,0.052621,95033.0,95018.0,0.052629]
[1736348006575,0.052621,95033.0,95019.0,0.052628]
[1736348006772,0.3608,95027.0,95010.0,0.36098425]
[1736348007077,0.3608,95027.0,95010.0,0.60529915]
[1736348007479,0.41342,95035.0,95010.0,0.60529915]
[1736348007667,0.052617,95041.0,95031.0,0.052622]
[1736348007873,0.3608,95049.0,95036.0,0.3608]
[1736348008068,0.3608,95049.0,95043.0,0.052615]
[1736348008274,0.18565214,95059.0,95048.0,0.3608]
[1736348008583,0.052608,95057.0,95048.0,0.3608]
[1736348008778,0.3608,95067.0,95048.0,0.3608]
[1736348008981,0.3608,95067.0,95056.0,0.3608]
[1736348009181,0.18565214,95070.0,95064.0,0.3608]
[1736348009380,0.052602,95067.0,95064.0,0.3608]
[1736348009777,0.3608,95078.0,95064.0,0.3608]
[1736348009986,0.3608,95078.0,95069.0,0.052601]
[1736348010288,0.3608,95087.0,95065.0,0.052603]
[1736348010674,0.052596,95078.0,95065.0,0.052603]
[1736348011074,0.3608,95087.0,95059.0,0.052607]
[1736348011281,0.3608,95087.0,95056.0,0.3608]
[1736348011583,0.052597,95077.0,95056.0,0.3608]
[1736348011779,0.052597,95076.0,95067.0,0.052602]
[1736348012180,0.3608,95078.0,95064.0,0.3608]
[1736348012383,0.3608,95070.0,95056.0,0.3608]
[1736348012682,0.3608,95070.0,95055.0,0.4722]
[1736348012683,0.052608,95056.0,95055.0,0.00064]
[1736348012892,0.052617,95041.0,95024.0,0.0158]
[1736348013186,0.413413,95047.0,95033.0,0.3608]
[1736348013488,0.3608,95047.0,95033.0,0.3608]
[1736348013684,0.3608,95039.0,95026.0,0.052625]
[1736348013884,0.3608,95052.0,95030.0,0.3608]
[1736348014077,0.052614,95046.0,95039.0,0.413417]
[1736348014489,0.3608,95052.0,95039.0,0.3608]
[1736348014685,0.052614,95046.0,95039.0,0.3608]
[1736348014875,0.052614,95046.0,95040.0,0.068417]
[1736348015075,0.3608,95052.0,95040.0,0.0158]
[1736348015275,0.052616,95042.0,95040.0,0.0158]
[1736348015479,0.052613,95048.0,95040.0,0.0158]
[1736348015687,0.51559574,95076.0,95047.0,0.3608]
[1736348015887,0.51559574,95076.0,95059.0,0.3608]
[1736348016085,0.052601,95069.0,95068.0,0.3608]
[1736348016390,0.052602,95067.0,95062.0,0.052605]
[1736348016575,0.3608,95086.0,95062.0,0.052605]
[1736348016781,0.052604,95064.0,95062.0,0.052605]
[1736348016979,0.052605,95062.0,95059.0,0.3608]
[1736348017788,0.37171578,95086.0,95059.0,0.3608]
[1736348017997,0.3608,95086.0,95070.0,0.2443149]
[1736348018183,0.052596,95079.0,95075.0,0.3608]
[1736348018383,0.052596,95079.0,95075.0,0.413397]
[1736348018793,0.052596,95079.0,95075.0,0.3608]
[1736348018998,0.052596,95079.0,95076.0,0.052597]
[1736348019288,0.052597,95078.0,95076.0,0.052597]
[1736348019880,0.052601,95069.0,95067.0,0.413402]
[1736348020081,0.3608,95073.0,95060.0,0.052606]
[1736348020287,0.3608,95073.0,95049.0,0.47136]
[1736348020489,0.052605,95062.0,95059.0,0.052606]
[1736348020690,0.3608,95073.0,95049.0,0.472]
[1736348020893,0.052608,95058.0,95049.0,0.472]
[1736348021084,0.052608,95058.0,95055.0,0.052609]
[1736348021286,0.052608,95058.0,95056.0,0.052608]
[1736348021790,0.052597,95077.0,95049.0,0.47208]
[1736348021791,0.052612,95050.0,95049.0,0.47208]
[1736348021979,0.052612,95050.0,95049.0,0.47136]
[1736348023794,0.052612,95050.0,95049.0,0.523972]
[1736348024186,0.413397,95077.0,95049.0,0.47136]
[1736348024394,0.052607,95059.0,95058.0,0.052607]
[1736348024892,0.3608,95067.0,95049.0,0.472]
[1736348025087,0.052612,95050.0,95049.0,0.47136]
[1736348025290,0.052612,95050.0,95049.0,0.523972]
[1736348025492,0.052612,95050.0,95044.0,0.3608]
[1736348025493,0.3608,95059.0,95044.0,0.3608]
[1736348025687,0.3608,95051.0,95035.0,0.0158]
[1736348025883,0.3608,95051.0,95033.0,0.3608]
[1736348025884,0.05262,95034.0,95033.0,0.3608]
[1736348026088,0.35572857,95051.0,95033.0,0.3608]
[1736348026089,0.052618,95040.0,95039.0,0.052618]
[1736348026294,0.3608,95059.0,95035.0,0.3608]
[1736348026512,0.052611,95052.0,95051.0,0.3608]
[1736348026693,0.05261,95057.0,95056.0,0.052608]
[1736348026998,0.3608,95059.0,95051.0,0.3608]
[1736348027194,0.05261,95052.0,95051.0,0.3608]
[1736348030090,0.052619,95036.0,95035.0,0.3608]
[1736348030294,0.052619,95036.0,95035.0,0.40870641]
[1736348030700,0.052619,95036.0,95035.0,0.3608]
[1736348031396,0.052612,95051.0,95035.0,1.0216]
[1736348031595,0.052619,95037.0,95036.0,0.04794669]
[1736348032493,0.052612,95049.0,95035.0,0.72224]
[1736348032690,0.052619,95036.0,95035.0,0.3608]
[1736348032895,0.052607,95058.0,95035.0,0.76955264]
[1736348033094,0.05261,95052.0,95043.0,0.3608]
[1736348033396,0.052609,95055.0,95052.0,0.05261]
[1736348033597,0.15479574,95066.0,95053.0,0.04795264]
[1736348033803,0.15479574,95066.0,95054.0,0.04795264]
[1736348034015,0.052608,95056.0,95055.0,0.04795264]
[1736348034203,0.05261,95052.0,95051.0,0.3608]
[1736348034396,0.05261,95052.0,95051.0,0.40874889]
[1736348034596,0.05261,95052.0,95051.0,0.42454889]
[1736348034895,0.15479574,95070.0,95051.0,0.42454889]
[1736348035200,0.05261,95053.0,95052.0,0.04794889]
[1736348035904,0.05261,95053.0,95052.0,0.10055889]
[1736348036102,0.05261,95053.0,95052.0,0.04794889]
[1736348036295,0.3608,95065.0,95032.0,0.83212]
[1736348036490,0.052616,95045.0,95044.0,0.052615]
[1736348036689,0.052616,95045.0,95032.0,0.84792]
[1736348036690,0.052616,95042.0,95032.0,0.48712]
[1736348036891,0.052621,95033.0,95032.0,0.0158]
[1736348037205,0.052617,95041.0,95040.0,0.052617]
[1736348037405,0.052617,95041.0,95040.0,0.413417]
[1736348037704,0.052617,95041.0,95040.0,0.40876752]
[1736348038009,0.05262,95035.0,95034.0,0.05262]
[1736348038202,0.05262,95035.0,95034.0,0.10059012]
[1736348039501,0.05262,95035.0,95034.0,0.40877012]
[1736348039895,0.05262,95035.0,95034.0,0.46139012]
[1736348040097,0.05262,95035.0,95034.0,0.40877012]
[1736348040408,0.05262,95035.0,95034.0,0.04797012]
[1736348040604,0.41342,95035.0,95034.0,0.04797012]
[1736348040802,0.052625,95026.0,95010.0,0.24776152]
[1736348041005,0.3608,95035.0,95014.0,0.052631]
[1736348041006,0.052632,95015.0,95014.0,0.052631]
[1736348041199,0.052632,95015.0,95014.0,0.04807877]
[1736348041398,0.052633,95012.0,95011.0,0.24757727]
[1736348041599,0.052633,95012.0,95011.0,0.29522113]
[1736348042510,0.3608,95035.0,95015.0,0.052631]
[1736348042511,0.15479574,95016.0,95015.0,0.052631]
[1736348042702,0.15479574,95016.0,95015.0,0.46107486]
[1736348042903,0.20742574,95016.0,95015.0,0.46107486]
[1736348043107,0.20742574,95016.0,95015.0,0.40844386]
[1736348043413,0.052633,95011.0,95010.0,0.00018425]
[1736348043599,0.413433,95011.0,95010.0,0.00018425]
[1736348044515,0.413433,95011.0,94991.0,0.24915611]
[1736348044516,0.052644,94992.0,94991.0,0.24915611]
[1736348045297,0.052644,94992.0,94991.0,0.00157884]
[1736348045508,0.05275645,94992.0,94991.0,0.00157884]
[1736348045897,0.00011245,94992.0,94991.0,0.05422284]
[1736348046196,0.00011245,94992.0,94991.0,0.00157884]
[1736348046997,0.00011245,94992.0,94991.0,0.36237884]
[1736348047203,0.15537841,95005.0,94996.0,0.052642]
[1736348047405,0.15537841,95005.0,95004.0,0.413437]
[1736348047604,0.18645409,95013.0,95004.0,0.413437]
[1736348047605,0.15537841,95012.0,95011.0,0.052633]
[1736348048203,0.15537841,95012.0,95011.0,0.10013323]
[1736348048404,0.15537841,95012.0,95011.0,0.052633]
[1736348048810,0.052625,95026.0,95011.0,0.052633]
[1736348049016,0.052626,95024.0,95023.0,0.052627]
[1736348049512,0.052628,95021.0,95020.0,0.3608]
[1736348049708,0.052628,95021.0,95020.0,0.413428]
[1736348050009,0.01091032,95037.0,95020.0,0.3608]
[1736348050207,0.3608,95032.0,95020.0,0.3608]
[1736348050510,0.052635,95008.0,95007.0,0.00064]
[1736348050819,0.052643,94994.0,94990.0,0.052645]
[1736348051004,0.052643,94994.0,94992.0,0.052644]
[1736348051199,0.3608,95008.0,94986.0,0.3608]
[1736348051405,0.052644,94992.0,94987.0,0.053326]
[1736348051606,0.052644,94992.0,94988.0,0.052646]
[1736348051906,0.3608,95000.0,94972.0,0.068455]
[1736348051907,0.3608,95000.0,94986.0,0.052647]
[1736348052109,0.052643,94997.0,94996.0,0.052641]
[1736348052309,0.052643,94997.0,94984.0,0.3608]
[1736348052310,0.052633,95012.0,95011.0,0.052633]
[1736348052506,0.052628,95021.0,95011.0,0.052633]
[1736348052710,0.43747841,95030.0,95020.0,0.3608]
[1736348052919,0.3608,95045.0,95029.0,0.052623]
[1736348053113,0.3608,95061.0,95040.0,0.3608]
[1736348053423,0.052607,95059.0,95057.0,0.052607]
[1736348053601,0.05261,95053.0,95052.0,0.3608]
[1736348053808,0.052608,95057.0,95050.0,0.052611]
[1736348054003,0.24782652,95070.0,95040.0,0.3608]
[1736348054217,0.3608,95071.0,95048.0,0.3608]
[1736348054512,0.15547741,95073.0,95034.0,0.47156]
[1736348054513,0.15547741,95073.0,95067.0,0.3608]
[1736348054716,0.15547741,95073.0,95069.0,0.052601]
[1736348054919,0.15547741,95073.0,95067.0,0.3608]
[1736348055115,0.15547741,95073.0,95071.0,0.0526]
[1736348055518,0.15547741,95084.0,95079.0,0.052596]
[1736348055717,0.20807041,95084.0,95080.0,0.3608]
[1736348056020,0.15547741,95084.0,95082.0,0.052594]
[1736348056415,0.15547741,95084.0,95083.0,0.3608]
[1736348056617,0.18657289,95091.0,95090.0,0.052589]
[1736348056810,0.18657289,95091.0,95090.0,0.413389]
[1736348057009,0.1,95100.0,95090.0,0.413389]
[1736348057010,0.1,95100.0,95090.0,0.40829421]
[1736348057211,0.1,95100.0,95099.0,0.3608]
[1736348057613,0.1,95100.0,95099.0,0.413384]
[1736348057817,0.1,95100.0,95099.0,0.3608]
[1736348058019,0.1,95100.0,95092.0,0.052588]
[1736348058712,0.052589,95091.0,95090.0,0.3608]
[1736348059217,0.1,95100.0,95090.0,0.3608]
[1736348059518,0.1,95100.0,95099.0,0.3608]
[1736348059820,0.1,95100.0,95072.0,0.3608]
[1736348059821,0.4608,95100.0,95072.0,0.3608]
[1736348060021,0.052595,95081.0,95072.0,0.3608]
[1736348060220,0.052595,95081.0,95073.0,0.052599]
[1736348060419,0.3608,95079.0,95067.0,0.0158]
[1736348060717,0.052603,95067.0,95065.0,0.0158]
[1736348060926,0.3608,95079.0,95063.0,0.052604]
[1736348061116,0.3608,95079.0,95060.0,0.6051149]
[1736348061313,0.3608,95085.0,95065.0,0.052603]
[1736348061513,0.3608,95070.0,95060.0,0.3608]
[1736348061722,0.3608,95102.0,95069.0,0.3608]
[1736348062020,0.052583,95103.0,95098.0,0.3608]
[1736348062224,0.18657289,95103.0,95098.0,0.413385]
[1736348062408,0.052584,95101.0,95098.0,0.413385]
[1736348063025,0.052584,95101.0,95098.0,0.3608]
[1736348063624,0.052584,95101.0,95078.0,0.052596]
[1736348063625,0.052594,95082.0,95079.0,0.3608]
[1736348063829,0.052596,95079.0,95060.0,0.47132]
[1736348064122,0.052599,95074.0,95060.0,0.47132]
[1736348064329,0.3608,95093.0,95076.0,0.052597]
[1736348064627,0.3608,95093.0,95067.0,0.3608]
[1736348065028,0.052593,95084.0,95067.0,0.3608]
[1736348065323,0.0526,95071.0,95067.0,0.3608]
[1736348065725,0.052602,95069.0,95067.0,0.3608]
[1736348065923,0.052605,95062.0,95060.0,0.00064]
[1736348066129,0.3608,95073.0,95058.0,0.3608]
[1736348066321,0.052607,95059.0,95058.0,0.3608]
[1736348066634,0.052608,95056.0,95041.0,0.00064]
[1736348066924,0.052608,95056.0,95030.0,0.0158]
[1736348067131,0.052614,95047.0,95036.0,0.052619]
[1736348067323,0.3608,95059.0,95037.0,0.052618]
[1736348067523,0.052614,95045.0,95039.0,0.052618]
[1736348067723,0.052615,95044.0,95035.0,0.05262]
[1736348067924,0.052615,95044.0,95036.0,0.3608]
[1736348068431,0.052617,95041.0,95035.0,0.05262]
[1736348068729,0.052617,95041.0,95036.0,0.3608]
[1736348068925,0.052591,95087.0,95084.0,0.3608]
[1736348069128,0.01109273,95088.0,95086.0,0.774191]
[1736348069432,0.21671404,95126.0,95094.0,0.16313438]
[1736348069433,0.01087892,95121.0,95094.0,0.16313438]
[1736348069625,0.052574,95118.0,95117.0,0.3608]
[1736348069826,0.052574,95118.0,95094.0,0.16313438]
[1736348069827,0.052579,95109.0,95108.0,0.3608]
[1736348071123,0.052587,95095.0,95094.0,0.16313438]
[1736348071927,0.052596,95079.0,95078.0,0.3608]
[1736348072123,0.052596,95079.0,95078.0,0.7216]
[1736348072927,0.052596,95079.0,95078.0,0.3608]
[1736348073830,0.1402,95093.0,95078.0,0.3608]
[1736348074036,0.05259,95089.0,95088.0,0.3608]
[1736348074327,0.05259,95089.0,95068.0,0.052601]
[1736348074634,0.052603,95066.0,95065.0,0.3608]
[1736348075021,0.052601,95069.0,95065.0,0.3608]
[1736348075223,0.002,95079.0,95065.0,0.3608]
[1736348075424,0.052598,95074.0,95073.0,0.3608]
[1736348075827,0.052598,95074.0,95065.0,0.3608]
[1736348076024,0.052603,95066.0,95065.0,0.3608]
[1736348076526,0.002,95079.0,95065.0,0.3608]
[1736348076527,0.052599,95073.0,95067.0,0.052602]
[1736348076725,0.052599,95073.0,95065.0,0.3608]
[1736348076726,0.01087169,95094.0,95072.0,0.3608]
[1736348076928,0.05265821,95095.0,95093.0,0.3608]
[1736348077737,7.121e-05,95095.0,95094.0,0.052587]
[1736348077931,0.05258,95108.0,95093.0,0.3608]
[1736348078235,0.05258,95108.0,95107.0,0.3608]
[1736348078435,0.01104679,95113.0,95110.0,0.052578]
[1736348078627,0.3608,95133.0,95110.0,0.3608]
[1736348078930,0.05257,95127.0,95122.0,0.3608]
[1736348079143,0.3608,95142.0,95122.0,0.3608]
[1736348079330,0.052571,95124.0,95122.0,0.3608]
[1736348079734,0.052577,95113.0,95105.0,0.3608]
[1736348079930,0.3608,95133.0,95106.0,0.052581]
[1736348080232,0.052575,95116.0,95115.0,0.3608]
[1736348080938,0.3608,95133.0,95115.0,0.3608]
[1736348081323,0.05257,95125.0,95124.0,0.3608]
[1736348083132,0.052575,95116.0,95114.0,0.3608]
[1736348085237,0.052582,95104.0,95103.0,0.3608]
[1736348085542,0.052582,95104.0,95095.0,0.34288799]
[1736348085725,0.052586,95096.0,95095.0,0.34288799]
[1736348086331,0.3608,95107.0,95095.0,0.34288799]
[1736348086557,0.052586,95097.0,95095.0,0.34288799]
[1736348086840,0.052586,95096.0,95095.0,0.34288799]
[1736348087146,0.052591,95088.0,95087.0,0.3608]
[1736348088241,0.052587,95095.0,95087.0,0.3608]
[1736348088545,0.15576179,95100.0,95091.0,0.3608]
[1736348088733,0.15576179,95100.0,95099.0,0.3608]
[1736348088933,0.052581,95106.0,95099.0,0.413385]
[1736348089135,0.052571,95124.0,95099.0,0.413385]
[1736348089136,0.052571,95124.0,95100.0,0.052584]
[1736348089334,0.052578,95111.0,95110.0,0.3608]
[1736348089842,0.052584,95100.0,95099.0,0.3608]
[1736348090042,0.052584,95100.0,95091.0,0.3608]
[1736348090043,0.052589,95092.0,95091.0,0.3608]
[1736348090529,0.052589,95092.0,95085.0,0.00011717]
[1736348090737,0.052592,95086.0,95085.0,0.00011717]
[1736348093342,0.053592,95086.0,95085.0,0.00011717]
[1736348095743,0.055592,95086.0,95085.0,0.00011717]
[1736348095938,0.06674427,95086.0,95085.0,0.00011717]
[1736348096445,0.06474427,95086.0,95085.0,0.00011717]
[1736348096841,0.06374427,95086.0,95085.0,0.00011717]
[1736348097042,0.06474427,95086.0,95085.0,0.00011717]
[1736348097240,0.052595,95080.0,95079.0,0.36237742]
[1736348097445,0.06474427,95086.0,95079.0,0.36237742]
[1736348097446,0.052592,95085.0,95079.0,0.36237742]
[1736348097750,0.15578602,95094.0,95080.0,0.052595]
[1736348098047,0.20837302,95094.0,95093.0,0.3608]
[1736348098249,0.05269634,95094.0,95093.0,0.3608]
[1736348098952,0.06363649,95094.0,95093.0,0.3608]
[1736348099949,0.00010934,95094.0,95093.0,0.3608]
[1736348100146,0.00010934,95094.0,95093.0,0.413388]
[1736348100350,0.15578602,95099.0,95093.0,0.413388]
[1736348100351,0.15578602,95099.0,95093.0,0.76098093]
[1736348100543,0.18694323,95105.0,95098.0,0.3608]
[1736348100745,0.052583,95102.0,95099.0,0.052584]
[1736348101158,0.052582,95105.0,95100.0,0.052584]
[1736348101352,0.01071214,95105.0,95098.0,0.3608]
[1736348101552,0.052585,95099.0,95098.0,0.3608]
[1736348101746,0.052586,95098.0,95081.0,0.3608]
[1736348102150,0.052593,95084.0,95081.0,0.3608]
[1736348102553,0.052586,95098.0,95081.0,0.3608]
[1736348102851,0.052587,95094.0,95093.0,0.001]
[1736348103755,0.05259,95090.0,95089.0,0.3608]
[1736348104854,0.01173107,95094.0,95089.0,0.3608]
[1736348105157,0.001,95094.0,95093.0,0.052588]
[1736348105353,0.003,95094.0,95093.0,0.10024615]
[1736348105559,0.003,95094.0,95093.0,0.04765815]
[1736348105952,0.001,95094.0,95093.0,0.0476683]
[1736348106150,0.001,95094.0,95093.0,0.1002563]
[1736348106352,0.052568,95129.0,95111.0,0.052578]
[1736348106651,0.21810043,95131.0,95128.0,0.3608]
[1736348107053,0.21810043,95131.0,95130.0,0.052567]
[1736348107858,0.06335842,95138.0,95132.0,0.052566]
[1736348108051,0.21810043,95167.0,95137.0,0.3608]
[1736348108252,0.052563,95138.0,95137.0,0.3608]
[1736348108859,0.3608,95169.0,95137.0,0.3766]
[1736348109160,0.05255,95161.0,95160.0,0.3608]
[1736348109365,0.21810043,95167.0,95160.0,0.3608]
[1736348109550,0.21810043,95167.0,95160.0,0.7216]
[1736348110061,0.22110043,95167.0,95166.0,0.052548]
[1736348110463,0.003,95167.0,95166.0,0.052548]
[1736348110954,0.052543,95175.0,95168.0,0.052546]
[1736348111155,0.052543,95175.0,95174.0,0.3608]
[1736348112149,0.01109758,95183.0,95174.0,0.3608]
[1736348112354,0.3608,95193.0,95174.0,0.3608]
[1736348112558,0.052537,95185.0,95184.0,0.3608]